bitfinex/quotes_SOLUSD_20250822
["timestamp","ask_amount","ask_price","bid_price","bid_amount"]
[1755890325967,19.91086245,197.48,197.47,0.03]
[1755890326192,19.91086245,197.48,197.45,0.03]
[1755890326193,39.59559401,197.46,197.45,0.03]
[1755890326369,45.28086245,197.46,197.45,0.03]
[1755890326707,45.91086245,197.46,197.45,0.03]
[1755890327196,13.59559401,197.46,197.45,0.03]
[1755890327378,18.99653931,197.46,197.45,0.03]
[1755890327689,13.59559401,197.46,197.45,0.03]
[1755890327859,18.99653931,197.46,197.45,0.03]
[1755890328063,19.62653931,197.46,197.45,0.03]
[1755890328258,19.62653931,197.46,197.45,3.79685666]
[1755890328880,13.59559401,197.46,197.45,3.79685666]
[1755890329573,13.59559401,197.47,197.45,3.79618228]
[1755890329772,13.59559401,197.47,197.45,0.03]
[1755890330782,5.4009453,197.47,197.45,0.03]
[1755890330992,5.400946,197.46,197.45,0.03]
[1755890331191,13.59559401,197.47,197.45,0.03]
[1755890331570,5.400946,197.46,197.45,0.03]
[1755890331770,13.59559401,197.47,197.45,4.51452416]
[1755890331971,14.56991715,197.5,197.45,0.75]
[1755890332290,18.99653901,197.47,197.45,0.75]
[1755890333281,13.59559401,197.47,197.45,0.75]
[1755890333796,13.59559401,197.47,197.45,0.03]
[1755890335079,13.59559401,197.47,197.46,3.76282847]
[1755890335383,13.59559401,197.47,197.46,3.76282833]
[1755890335708,13.59559401,197.47,197.46,9.16377363]
[1755890336997,5.400945,197.49,197.46,9.83377363]
[1755890337293,13.59559401,197.49,197.48,5.4009453]
[1755890337703,0.06,197.5,197.48,9.83229061]
[1755890338002,0.06,197.5,197.49,5.4009453]
[1755890338785,0.06,197.5,197.49,9.83172885]
[1755890339179,0.06,197.5,197.49,3.76078355]
[1755890339382,0.06,197.5,197.49,9.16172885]
[1755890339884,0.06,197.5,197.49,3.76078355]
[1755890340090,0.06,197.5,197.49,9.16172885]
[1755890340404,0.06,197.5,197.49,5.4009453]
[1755890340707,0.06,197.5,197.49,6.3756453]
[1755890340885,0.06,197.5,197.49,10.13534413]
[1755890341984,0.06,197.5,197.49,9.46534413]
[1755890342182,0.74,197.5,197.49,4.06439883]
[1755890342492,0.06,197.5,197.49,9.46534413]
[1755890343074,0.06,197.5,197.49,5.7056453]
[1755890343274,0.06,197.5,197.49,9.46698295]
[1755890343982,0.06,197.5,197.49,9.46752263]
[1755890345188,0.06,197.5,197.49,10.13752263]
[1755890346203,0.06,197.5,197.49,10.13792144]
[1755890346608,14.33559401,197.5,197.49,4.06697614]
[1755890346817,14.33559401,197.5,197.49,0.3047]
[1755890347018,13.65559401,197.5,197.49,0.3047]
[1755890347207,14.33559401,197.5,197.49,0.3047]
[1755890348715,20.02086245,197.5,197.49,0.3047]
[1755890348899,14.61991715,197.5,197.49,0.3047]
[1755890349093,20.02086245,197.5,197.49,0.3047]
[1755890350320,25.42180845,197.5,197.49,0.3047]
[1755890350520,65.78180845,197.5,197.49,0.3047]
[1755890352609,60.38086315,197.5,197.49,0.3047]
[1755890352811,65.78180845,197.5,197.49,0.3047]
[1755890354036,60.38086315,197.5,197.49,0.3047]
[1755890354331,19.05654001,197.5,197.49,10.15309775]
[1755890354535,13.65559401,197.5,197.49,10.15309775]
[1755890355322,13.65559401,197.5,197.49,9.48163071]
[1755890355627,13.65559401,197.5,197.49,10.15163071]
[1755890359052,13.65559401,197.5,197.49,4.08068541]
[1755890359218,13.65559401,197.5,197.49,9.48163071]
[1755890359613,13.65559401,197.5,197.49,10.15163071]
[1755890361122,13.65559401,197.5,197.49,6.3756453]
[1755890361324,13.65559401,197.5,197.49,10.15547217]
[1755890361931,13.65559401,197.5,197.49,6.3756453]
[1755890362132,13.65559401,197.5,197.49,10.15413817]
[1755890365270,13.65559401,197.5,197.49,4.08319287]
[1755890365430,13.65559401,197.5,197.49,10.15413817]
[1755890366356,0.06,197.5,197.49,10.15413817]
[1755890367648,0.06,197.5,197.49,4.08319287]
[1755890367860,0.06,197.5,197.49,10.15413817]
[1755890370586,0.06,197.5,197.49,10.15002995]
[1755890370886,0.06,197.5,197.49,10.14956524]
[1755890371863,0.06,197.5,197.49,4.74861994]
[1755890372066,0.06,197.5,197.49,10.14956524]
[1755890373455,0.06,197.5,197.49,10.15222951]
[1755890375672,0.06,197.5,197.49,4.08128421]
[1755890375990,0.75,197.5,197.49,9.48222951]
[1755890376165,14.34559401,197.5,197.49,9.48222951]
[1755890376366,13.65559401,197.5,197.49,9.48222951]
[1755890376574,14.34559401,197.5,197.49,4.08128421]
[1755890378702,13.65559401,197.5,197.49,4.08128421]
[1755890379383,13.65559401,197.5,197.49,0.3047]
[1755890379693,13.65559401,197.5,197.49,9.48725095]
[1755890379898,0.06,197.5,197.49,10.15725095]
[1755890380084,0.06,197.5,197.49,4.75630565]
[1755890380289,0.06,197.5,197.49,10.15725095]
[1755890380498,0.06,197.5,197.49,9.48725095]
[1755890380702,0.06,197.5,197.49,10.15725095]
[1755890381009,0.06,197.5,197.49,9.48725095]
[1755890381372,0.06,197.5,197.49,10.15725095]
[1755890385410,0.06,197.5,197.49,6.3756453]
[1755890385582,0.06,197.5,197.49,10.1554239]
[1755890388504,0.06,197.5,197.49,6.3756453]
[1755890388837,0.06,197.5,197.49,10.15382227]
[1755890389614,0.06,197.5,197.49,10.1532063]
[1755890390416,0.2,197.51,197.49,10.1532063]
[1755890390712,0.2,197.51,197.5,9.8485063]
[1755890391695,0.2,197.51,197.5,9.84422009]
[1755890391909,0.2,197.52,197.5,9.84422009]
[1755890391910,0.2,197.52,197.5,35.84422009]
[1755890392116,0.2,197.52,197.51,49.84422009]
[1755890393496,0.06,197.53,197.51,49.84422009]
[1755890393700,0.06,197.53,197.52,9.84422009]
[1755890394098,0.06,197.53,197.52,9.17422009]
[1755890394397,0.06,197.53,197.52,9.84422009]
[1755890396609,0.06,197.54,197.52,9.84422009]
[1755890396806,0.06,197.54,197.53,3.77327479]
[1755890397008,0.06,197.54,197.53,49.41422009]
[1755890397411,0.06,197.54,197.53,50.12422009]
[1755890397725,0.06,197.54,197.53,50.1236976]
[1755890398031,0.06,197.54,197.53,49.4136976]
[1755890400313,14.35559401,197.54,197.53,3.7727523]
[1755890400736,16.38363101,197.54,197.53,3.77520065]
[1755890401348,21.78457631,197.54,197.53,3.77520065]
[1755890401644,13.59559401,197.53,197.48,5.4009453]
[1755890401938,13.59559401,197.51,197.49,3.77722964]
[1755890402244,13.59559401,197.53,197.48,5.4009453]
[1755890402542,18.99653931,197.53,197.45,0.03]
[1755890402722,13.59559401,197.51,197.49,5.4009453]
[1755890402919,0.7,197.5,197.49,5.4009453]
[1755890403752,6.100946,197.5,197.49,5.4009453]
[1755890404249,5.400946,197.5,197.49,5.4009453]
[1755890404408,5.400946,197.5,197.47,0.74]
[1755890404613,5.400946,197.5,197.49,5.4009453]
[1755890404812,0.68,197.53,197.49,5.4009453]
[1755890405037,6.080946,197.52,197.51,5.4009453]
[1755890405563,6.080946,197.52,197.5,5.4009453]
[1755890405715,5.400946,197.52,197.5,5.4009453]
[1755890405922,0.68,197.51,197.49,5.4009453]
[1755890406151,5.400946,197.52,197.5,5.4009453]
[1755890406322,0.06,197.54,197.51,5.4009453]
[1755890406513,5.400945,197.53,197.52,5.4009453]
[1755890406961,0.06,197.54,197.52,5.4009453]
[1755890407268,0.06,197.54,197.53,5.4009453]
[1755890407444,0.06,197.54,197.53,6.1109453]
[1755890409357,0.06,197.54,197.53,9.89016012]
[1755890411063,0.06,197.54,197.53,10.19486012]
[1755890412250,0.06,197.54,197.53,50.29486012]
[1755890413950,0.2,197.57,197.56,26.0]
[1755890414131,0.2,197.57,197.56,35.18016012]
[1755890414338,0.2,197.57,197.56,75.24016012]
[1755890414738,0.2,197.57,197.56,75.95016012]
[1755890414931,0.2,197.57,197.56,75.946744]
[1755890415328,0.2,197.57,197.56,75.94675164]
[1755890415959,0.2,197.57,197.56,75.23675164]
[1755890416148,0.2,197.57,197.56,35.17675164]
[1755890416537,0.2,197.57,197.56,75.21675164]
[1755890417158,0.2,197.57,197.56,75.92675164]
[1755890418058,0.2,197.57,197.56,81.32769694]
[1755890418841,0.2,197.57,197.56,75.92675164]
[1755890419337,0.2,197.57,197.56,75.9238047]
[1755890419848,0.2,197.57,197.56,81.32475]
[1755890421072,2.64030528,197.65,197.56,142.12301846]
[1755890421234,2.64030528,197.65,197.64,5.4009453]
[1755890421435,2.64030528,197.65,197.64,9.17207316]
[1755890421996,140.14310687,197.72,197.66,26.0]
[1755890421997,0.9,197.72,197.66,26.0]
[1755890422299,0.9,197.72,197.69,5.4009453]
[1755890422462,0.9,197.72,197.69,9.17207316]
[1755890423172,0.9,197.72,197.69,3.77112786]
[1755890423368,3.304874,197.7,197.69,3.77112786]
[1755890423565,3.304874,197.7,197.69,9.17207316]
[1755890423959,3.304874,197.7,197.69,5.4009453]
[1755890424165,2.604874,197.7,197.69,9.16183404]
[1755890424882,2.604874,197.7,197.69,49.81183404]
[1755890425565,2.604874,197.7,197.69,52.41670804]
[1755890426186,0.2,197.72,197.69,52.41670804]
[1755890426384,0.2,197.72,197.71,31.4009453]
[1755890426578,0.2,197.72,197.71,35.16183404]
[1755890426828,0.2,197.72,197.71,35.87183404]
[1755890427617,0.2,197.72,197.71,75.81183404]
[1755890428179,0.2,197.72,197.71,70.41088874]
[1755890428412,0.2,197.72,197.71,75.81183404]
[1755890430495,0.06,197.74,197.71,75.81183404]
[1755890430818,0.06,197.74,197.73,5.4009453]
[1755890431028,0.06,197.74,197.73,49.08183404]
[1755890431313,0.06,197.74,197.73,49.74183404]
[1755890433213,0.06,197.74,197.73,49.04871367]
[1755890433417,0.06,197.74,197.73,9.12871367]
[1755890433611,0.06,197.74,197.73,49.00695613]
[1755890436290,0.69,197.81,197.73,49.66428609]
[1755890436511,0.69,197.81,197.74,4.38334079]
[1755890436815,0.69,197.81,197.8,5.4009453]
[1755890437506,0.69,197.81,197.78,39.82]
[1755890437701,0.69,197.81,197.78,45.2209453]
[1755890438624,0.69,197.81,197.78,5.4009453]
[1755890439389,13.59559401,197.8,197.7,0.66]
[1755890439590,0.69,197.79,197.76,5.4009453]
[1755890440696,13.59559401,197.8,197.78,5.4009453]
[1755890441006,0.69,197.81,197.79,5.4009453]
[1755890441215,0.69,197.81,197.75,0.66]
[1755890441216,28.78508301,197.83,197.8,5.4009453]
[1755890441409,0.69,197.82,197.77,39.82]
[1755890441612,0.69,197.82,197.78,3.71614161]
[1755890441927,13.59559401,197.81,197.79,5.4009453]
[1755890442307,14.28559401,197.81,197.8,5.4009453]
[1755890443514,14.28559401,197.81,197.79,5.7056453]
[1755890443814,13.59559401,197.82,197.79,5.7056453]
[1755890444021,0.69,197.8,197.79,5.7056453]
[1755890444615,14.28559401,197.82,197.79,5.7056453]
[1755890444817,14.28559401,197.82,197.79,0.3047]
[1755890444818,0.69,197.81,197.79,0.3047]
[1755890445403,14.28559401,197.8,197.79,0.3047]
[1755890445605,14.28559401,197.8,197.79,5.7056453]
[1755890445796,13.59559401,197.8,197.79,5.7056453]
[1755890446018,15.189489,197.83,197.79,5.7056453]
[1755890446208,14.28559401,197.82,197.79,5.7056453]
[1755890447125,0.69,197.81,197.79,0.3047]
[1755890447296,0.69,197.8,197.79,0.3047]
[1755890448631,15.189489,197.82,197.79,0.9647]
[1755890448801,13.59559401,197.83,197.81,5.4009453]
[1755890449001,28.78354501,197.83,197.81,5.4009453]
[1755890449229,29.47354501,197.83,197.8,5.4009453]
[1755890449922,14.28559401,197.83,197.81,5.4009453]
[1755890450110,13.59559401,197.83,197.81,5.4009453]
[1755890450313,0.06,197.84,197.82,5.4009453]
[1755890450501,0.06,197.84,197.83,5.4009453]
[1755890450702,0.06,197.84,197.83,9.78169865]
[1755890451010,0.75,197.84,197.83,9.12169865]
[1755890451313,0.06,197.84,197.83,9.12169865]
[1755890451515,0.06,197.84,197.83,5.4009453]
[1755890451829,0.06,197.84,197.83,9.12317116]
[1755890452330,0.06,197.84,197.83,9.78317116]
[1755890453224,13.595594,197.87,197.85,26.0]
[1755890453423,0.69,197.95,197.86,49.60317116]
[1755890453626,3.32610557,197.95,197.91,5.4009453]
[1755890453805,14.28559401,197.94,197.88,0.66]
[1755890454011,14.28559401,197.94,197.89,3.71938849]
[1755890454227,14.28559401,197.94,197.91,5.4009453]
[1755890454434,14.28559401,197.93,197.92,3.71878326]
[1755890454728,14.28559401,197.93,197.91,5.4009453]
[1755890454928,14.28559401,197.92,197.85,0.66]
[1755890455120,14.28559401,197.92,197.89,5.4009453]
[1755890455428,14.28559401,197.91,197.9,3.71971323]
[1755890455737,13.59559401,197.91,197.9,3.71971323]
[1755890457126,13.59559401,197.91,197.9,9.12065853]
[1755890457633,14.28559401,197.91,197.9,3.72184496]
[1755890458234,19.68653931,197.91,197.9,3.72184496]
[1755890458432,19.68653931,197.91,197.85,5.4009453]
[1755890458619,19.68653931,197.91,197.86,9.12519746]
[1755890458821,19.68653931,197.91,197.87,3.72425216]
[1755890459034,13.59559401,197.89,197.88,3.72425216]
[1755890459548,0.69,197.89,197.88,3.72425216]
[1755890460020,19.97086245,197.91,197.88,3.72425216]
[1755890460219,6.090945,197.9,197.89,3.72425216]
[1755890460754,13.87991715,197.89,197.82,5.4009453]
[1755890460915,13.59559401,197.87,197.83,3.72864066]
[1755890461120,13.59559401,197.85,197.84,3.72864066]
[1755890461528,11.4918913,197.87,197.84,3.72864066]
[1755890461820,5.400946,197.87,197.83,5.4009453]
[1755890462040,13.59559401,197.89,197.85,6.1209453]
[1755890462242,13.59559401,197.9,197.86,3.73102578]
[1755890462441,19.68653931,197.9,197.87,3.73102578]
[1755890462655,0.69,197.89,197.84,5.4009453]
[1755890462827,0.69,197.89,197.85,3.731847]
[1755890463149,0.69,197.89,197.86,3.731847]
[1755890463364,13.59559401,197.9,197.87,3.731847]
[1755890463658,13.59559401,197.9,197.88,9.1327923]
[1755890463867,15.183339,197.91,197.89,9.8527923]
[1755890464025,13.59559401,197.94,197.9,3.73460714]
[1755890464232,13.59559401,197.94,197.83,26.0]
[1755890464556,13.59559401,197.94,197.9,5.4009453]
[1755890464930,14.28559401,197.94,197.9,5.4009453]
[1755890465323,13.59559401,197.94,197.92,5.4009453]
[1755890465553,13.59559401,197.94,197.92,6.1209453]
[1755890465730,13.59559401,197.94,197.93,6.1209453]
[1755890466053,0.06,197.95,197.93,6.1209453]
[1755890466258,0.06,197.95,197.94,6.1209453]
[1755890467956,0.06,197.95,197.94,5.4009453]
[1755890468450,0.06,197.95,197.92,0.72]
[1755890468652,0.06,197.95,197.94,5.4009453]
[1755890468829,14.28559401,197.99,197.9,39.8]
[1755890468830,0.69,197.97,197.9,40.52]
[1755890469028,0.69,197.97,197.93,5.4009453]
[1755890469621,0.97432314,197.99,197.9,39.8]
[1755890469841,5.4009453,197.98,197.93,5.4009453]
[1755890470027,0.97432314,197.99,197.93,5.4009453]
[1755890470221,0.28432314,197.99,197.93,6.1209453]
[1755890470459,5.4009453,197.97,197.92,5.4009453]
[1755890470631,0.69,197.97,197.91,0.72]
[1755890470955,13.59559401,197.94,197.89,6.1209453]
[1755890471167,5.4009453,197.96,197.9,6.1209453]
[1755890471819,16.30952701,197.97,197.93,5.4009453]
[1755890471820,13.59559401,197.97,197.93,5.4009453]
[1755890472024,13.59559401,197.98,197.94,0.72]
[1755890472542,19.68653931,197.98,197.93,5.4009453]
[1755890472756,19.68653931,197.98,197.93,6.1209453]
[1755890472961,13.59559401,197.98,197.94,0.72]
[1755890473430,13.59559401,197.98,197.93,5.4009453]
[1755890473632,13.59559401,197.99,197.94,6.1209453]
[1755890473967,18.99653931,197.99,197.95,0.72]
[1755890474127,13.59559401,197.99,197.94,6.1209453]
[1755890474328,19.68653931,197.99,197.94,0.72]
[1755890474528,18.99653931,197.99,197.94,0.72]
[1755890474831,5.4009453,197.98,197.93,5.4009453]
[1755890475027,5.4009453,197.98,197.93,6.1209453]
[1755890475258,14.28559401,197.99,197.93,6.1209453]
[1755890475565,5.4009453,197.96,197.89,0.72]
[1755890475728,0.69,197.98,197.91,5.4009453]
[1755890475928,6.0909453,197.98,197.92,5.4009453]
[1755890476231,5.4009453,197.97,197.93,3.73567264]
[1755890476559,5.4009453,197.97,197.94,3.73567264]
[1755890476763,0.69,197.97,197.92,5.4009453]
[1755890476983,6.0909453,197.97,197.93,3.73540439]
[1755890477169,6.0909453,197.97,197.94,3.73540439]
[1755890477445,6.0909453,197.97,197.92,6.1209453]
[1755890477652,6.0909453,197.97,197.93,3.73525202]
[1755890477855,6.0909453,197.97,197.92,6.1209453]
[1755890478165,13.59559401,197.99,197.94,5.4009453]
[1755890478368,32.59213331,197.99,197.95,0.72]
[1755890478540,18.99653931,197.99,197.95,0.72]
[1755890479056,13.59559401,197.99,197.95,0.72]
[1755890479260,18.99653931,197.99,197.95,0.72]
[1755890479472,13.59559401,197.99,197.96,0.72]
[1755890480246,1.0,198.0,197.98,4.73738342]
[1755890480445,1.0,198.0,197.99,6.1209453]
[1755890481773,1.0,198.0,197.99,9.84968859]
[1755890483970,1.0,198.0,197.99,15.25063389]
[1755890484170,1.0,198.0,197.99,15.53495703]
[1755890484383,1.0,198.0,197.99,17.55725303]
[1755890484545,1.0,198.0,197.99,9.84968859]
[1755890485162,1.0,198.0,197.99,10.13401173]
[1755890485357,1.0,198.0,197.99,15.53495703]
[1755890486154,1.0,198.0,197.99,4.73306643]
[1755890486392,1.0,198.0,197.99,15.53495703]
[1755890486558,1.0,198.0,197.99,9.84968859]
[1755890487003,1.0,198.0,197.99,9.84079046]
[1755890487261,1.0,198.0,197.99,49.60079046]
[1755890487484,1.0,198.0,197.99,49.59934426]
[1755890490079,1.0,198.0,197.99,49.59788298]
[1755890490454,1.0,198.0,197.99,3.71693768]
[1755890490653,1.0,198.0,197.99,9.11788298]
[1755890491067,1.0,198.0,197.99,10.11258298]
[1755890491572,1.0,198.0,197.99,4.02163768]
[1755890492084,1.0,198.0,197.99,9.42258298]
[1755890492258,1.0,198.0,197.99,4.02163768]
[1755890492786,1.0,198.0,197.99,9.42258298]
[1755890493283,1.0,198.0,197.99,10.11258298]
[1755890495670,1.0,198.0,197.99,12.13508298]
[1755890496276,1.0,198.0,197.99,17.82392846]
[1755890497882,0.06,198.01,198.0,13.59559401]
[1755890498086,0.6012185,198.04,198.03,31.68526844]
[1755890498290,0.6012185,198.04,198.03,75.16578316]
[1755890498593,0.6012185,198.04,198.03,75.85578316]
[1755890499092,0.6012185,198.04,198.03,70.45483786]
[1755890499387,0.6012185,198.04,198.03,77.87767016]
[1755890499886,0.6012185,198.04,198.03,82.86926809]
[1755890503177,0.14656293,198.13,198.04,0.28432314]
[1755890503491,0.14656293,198.13,198.12,5.4009453]
[1755890503699,0.14656293,198.13,198.12,9.12146002]
[1755890504205,0.14656293,198.13,198.12,49.55146002]
[1755890504414,0.14656293,198.13,198.12,43.46051472]
[1755890504697,0.14656293,198.13,198.12,49.83578316]
[1755890505307,0.14656293,198.13,198.12,64.69724044]
[1755890505672,0.14656293,198.13,198.12,64.69498432]
[1755890506573,0.14656293,198.13,198.12,90.69498432]
[1755890507873,0.14656293,198.13,198.12,85.29403902]
[1755890508077,0.14656293,198.13,198.12,90.69498432]
[1755890508291,0.14656293,198.13,198.12,44.86403902]
[1755890508495,0.14656293,198.13,198.12,35.10772732]
[1755890508687,0.14656293,198.13,198.12,74.90772732]
[1755890509212,0.76,198.17,198.12,74.90772732]
[1755890509412,0.06,198.17,198.15,5.4009453]
[1755890509608,0.44,198.16,198.15,5.4009453]
[1755890509809,0.44,198.16,198.15,9.10621248]
[1755890510014,14.03559401,198.16,198.15,3.70526718]
[1755890510215,0.14216157,198.14,197.99,3.97495073]
[1755890510398,5.4009453,198.04,198.0,3.7112065]
[1755890510598,5.4009453,198.04,197.98,5.12651828]
[1755890510599,5.4009453,198.01,197.98,0.03]
[1755890510801,0.44,198.03,197.99,3.71570749]
[1755890510997,5.4009453,198.02,197.99,3.71570749]
[1755890511199,5.8409453,198.01,197.99,3.71570749]
[1755890511393,0.44,198.0,197.99,3.71570749]
[1755890512116,5.8409453,198.0,197.98,0.03]
[1755890512293,5.4009453,197.99,197.98,0.03]
[1755890512493,5.8409453,197.99,197.98,0.03]
[1755890512721,0.44,197.99,197.94,5.4009453]
[1755890512917,0.44,197.98,197.95,3.71838839]
[1755890513097,0.44,197.97,197.96,3.71838839]
[1755890513495,0.44,197.97,197.93,5.4009453]
[1755890513705,0.44,197.96,197.94,3.71838839]
[1755890513909,5.4009453,197.97,197.95,3.71838839]
[1755890514112,5.4009453,197.96,197.88,45.3209453]
[1755890514297,5.4009453,197.96,197.85,0.69]
[1755890514298,8.46043808,197.93,197.85,0.69]
[1755890514498,8.46043808,197.93,197.87,8.46043808]
[1755890514723,9.16043808,197.92,197.86,8.46043808]
[1755890514905,9.16043808,197.92,197.84,39.97]
[1755890515112,9.16043808,197.91,197.86,8.46043808]
[1755890515309,0.7,197.91,197.9,3.75224524]
[1755890516600,9.16043808,197.91,197.9,3.75224524]
[1755890516924,9.16043808,197.91,197.9,0.03]
[1755890517426,22.75603209,197.91,197.9,0.03]
[1755890517803,23.04035523,197.91,197.9,0.03]
[1755890519130,23.04035523,197.91,197.88,0.03]
[1755890519131,39.59559401,197.89,197.88,0.03]
[1755890519429,13.87991715,197.85,197.84,0.03]
[1755890519606,22.34035523,197.85,197.84,0.03]
[1755890519814,23.05035523,197.85,197.84,0.03]
[1755890520208,63.01035523,197.85,197.84,0.03]
[1755890520630,23.05035523,197.85,197.84,0.03]
[1755890521127,62.99035523,197.85,197.84,0.03]
[1755890521907,39.59559401,197.83,197.82,0.03]
[1755890522112,88.28035523,197.83,197.82,0.03]
[1755890522311,49.05035523,197.83,197.82,0.03]
[1755890522535,89.03035523,197.83,197.82,0.03]
[1755890523430,49.05035523,197.83,197.82,0.03]
[1755890523624,89.03035523,197.83,197.82,0.03]
[1755890524001,51.07613323,197.83,197.82,0.03]
[1755890524198,91.03613323,197.83,197.82,0.03]
[1755890525204,13.87991715,197.82,197.8,0.03]
[1755890525400,22.34035523,197.81,197.8,0.03]
[1755890525601,22.34035523,197.81,197.74,0.1]
[1755890525602,13.59559401,197.79,197.74,0.1]
[1755890525802,62.32035523,197.79,197.74,0.1]
[1755890526006,63.03035523,197.79,197.74,0.1]
[1755890527123,91.03674823,197.79,197.74,0.1]
[1755890527333,65.03674823,197.79,197.74,0.1]
[1755890530747,39.87991715,197.75,197.74,0.1]
[1755890530942,48.34035523,197.75,197.74,0.1]
[1755890531141,13.59559401,197.75,197.74,0.1]
[1755890531446,62.13603209,197.75,197.74,0.1]
[1755890531618,62.98819366,197.75,197.74,0.1]
[1755890531817,39.73775558,197.75,197.74,0.1]
[1755890532014,79.89775558,197.75,197.74,0.1]
[1755890532246,80.07991715,197.75,197.74,0.1]
[1755890532545,48.34035523,197.75,197.74,0.1]
[1755890532746,13.59559401,197.75,197.74,0.76]
[1755890532930,53.79559401,197.75,197.74,0.1]
[1755890533129,53.79559401,197.75,197.74,0.76]
[1755890533424,13.59559401,197.81,197.74,0.76]
[1755890533633,13.59559401,197.79,197.75,8.46043808]
[1755890533834,13.59559401,197.79,197.76,0.66]
[1755890534020,13.59559401,197.77,197.76,0.66]
[1755890534745,53.81559401,197.77,197.76,0.66]
[1755890535046,40.22,197.77,197.76,0.66]
[1755890535354,13.59559401,197.8,197.76,10.23183808]
[1755890535555,53.79559401,197.78,197.77,0.66]
[1755890536123,13.59559401,197.78,197.77,0.66]
[1755890536323,53.79559401,197.78,197.77,0.66]
[1755890536537,53.79559401,197.78,197.77,9.12043808]
[1755890536741,13.59559401,197.78,197.77,9.12043808]
[1755890536946,53.79559401,197.78,197.77,9.12043808]
[1755890537143,2.6394435,197.82,197.77,9.12043808]
[1755890537347,53.77559401,197.81,197.78,0.66]
[1755890537558,53.77559401,197.81,197.76,1.1114]
[1755890537723,13.59559401,197.81,197.79,0.66]
[1755890537922,40.2,197.82,197.8,8.46043808]
[1755890538256,40.2,197.82,197.81,0.66]
[1755890538417,40.2,197.82,197.81,9.12043808]
[1755890539050,13.59559401,197.82,197.76,1.1114]
[1755890539323,13.59559401,197.82,197.79,8.31387515]
[1755890539536,13.59559401,197.82,197.79,8.97387515]
[1755890539840,13.87991715,197.84,197.79,8.97387515]
[1755890540038,13.59559401,197.82,197.79,8.97387515]
[1755890541140,13.59559401,197.82,197.79,8.31387515]
[1755890541329,8.46043808,197.85,197.76,1.1114]
[1755890541330,13.59559401,197.85,197.81,8.46043808]
[1755890541524,13.59559401,197.83,197.81,8.46043808]
[1755890541923,13.59559401,197.83,197.79,0.66]
[1755890542128,13.59559401,197.83,197.8,8.46043808]
[1755890542348,13.59559401,197.83,197.81,8.46043808]
[1755890542652,13.59559401,197.83,197.8,9.12043808]
[1755890543031,13.59559401,197.83,197.76,27.1114]
[1755890543032,0.71,197.82,197.77,8.46043808]
[1755890543233,13.59559401,197.8,197.76,1.1114]
[1755890543439,13.59559401,197.8,197.77,0.66]
[1755890543747,53.75559401,197.79,197.78,0.66]
[1755890544132,53.75559401,197.79,197.76,9.57183808]
[1755890544459,53.75559401,197.79,197.76,10.23183808]
[1755890544948,53.75559401,197.79,197.76,9.57183808]
[1755890545132,53.75559401,197.79,197.77,0.66]
[1755890545327,53.75559401,197.79,197.76,1.1114]
[1755890545558,53.75559401,197.79,197.76,9.57183808]
[1755890545733,53.75559401,197.79,197.77,9.12043808]
[1755890545933,13.59559401,197.84,197.78,9.12043808]
[1755890546232,13.59559401,197.82,197.81,8.46043808]
[1755890546661,40.16,197.83,197.81,9.12043808]
[1755890546828,40.16,197.83,197.81,0.66]
[1755890547252,40.16,197.83,197.81,8.46043808]
[1755890547456,53.75559401,197.83,197.82,0.67]
[1755890548040,53.75559401,197.83,197.8,0.67]
[1755890548251,53.75559401,197.83,197.81,9.13043808]
[1755890548464,53.75559401,197.83,197.79,0.67]
[1755890548766,40.16,197.82,197.79,9.13043808]
[1755890549138,40.16,197.82,197.79,0.67]
[1755890549350,40.16,197.82,197.79,9.13043808]
[1755890549544,40.16,197.82,197.79,8.46043808]
[1755890549863,40.16,197.82,197.76,1.1114]
[1755890549864,40.16,197.82,197.78,8.46043808]
[1755890550160,40.16,197.82,197.79,9.13043808]
[1755890550341,40.16,197.82,197.76,1.1414]
[1755890550342,0.06,197.81,197.77,9.13043808]
[1755890550663,0.06,197.79,197.78,0.67]
[1755890551039,0.06,197.79,197.78,9.13043808]